bitfinex-derivatives/quotes_BTCF0:USTF0_20250904
["timestamp","ask_amount","ask_price","bid_price","bid_amount"]
[1756987588953,1.23094,110900.0,110890.0,1.36554247]
[1756987589860,0.39026,110900.0,110890.0,1.36554247]
[1756987590157,1.11366,110900.0,110890.0,1.76903247]
[1756987590356,0.84446,110900.0,110890.0,1.76903247]
[1756987593765,0.84446,110900.0,110890.0,1.47917282]
[1756987593959,0.84446,110900.0,110890.0,1.76903247]
[1756987597870,0.84446,110900.0,110890.0,1.47917282]
[1756987598071,0.88548,110900.0,110890.0,1.72634247]
[1756987601680,0.88548,110900.0,110890.0,1.43648282]
[1756987601877,0.88548,110900.0,110890.0,1.72634247]
[1756987602776,0.88548,110900.0,110890.0,1.43648282]
[1756987602971,0.88548,110900.0,110890.0,1.72634247]
[1756987605279,0.84446,110900.0,110890.0,1.76757247]
[1756987607781,0.0041,110900.0,110890.0,1.76757247]
[1756987608479,0.8419,110900.0,110890.0,2.05757247]
[1756987608870,0.8419,110900.0,110890.0,2.26781716]
[1756987617385,0.8419,110900.0,110890.0,2.05757247]
[1756987617578,0.8419,110900.0,110890.0,1.76757247]
[1756987617885,0.8419,110900.0,110890.0,2.07757247]
[1756987618583,0.8419,110900.0,110890.0,2.28781716]
[1756987619284,0.8419,110900.0,110890.0,2.03781716]
[1756987620883,0.8419,110900.0,110890.0,2.07757247]
[1756987621578,0.8419,110900.0,110890.0,2.36693954]
[1756987623488,0.8419,110900.0,110890.0,2.57746171]
[1756987627190,0.8419,110900.0,110890.0,2.36693954]
[1756987627989,0.8389,110900.0,110890.0,2.36693954]
[1756987628290,0.65863794,110900.0,110890.0,2.36693954]
[1756987629889,0.65863794,110900.0,110890.0,2.4065529]
[1756987630190,0.83852,110900.0,110890.0,2.4065529]
[1756987630792,0.83852,110900.0,110890.0,2.61707507]
[1756987631184,0.83852,110900.0,110890.0,2.32746171]
[1756987632791,0.83852,110900.0,110890.0,2.61707507]
[1756987632991,0.83852,110900.0,110890.0,2.32746171]
[1756987633292,0.61500179,110900.0,110890.0,2.61707507]
[1756987633488,0.57202179,110900.0,110890.0,2.61707507]
[1756987633796,0.54102179,110900.0,110890.0,2.61707507]
[1756987634494,0.54102179,110900.0,110890.0,2.4065529]
[1756987634692,1.74208,110910.0,110900.0,0.0901469]
[1756987634895,2.57952,110910.0,110900.0,2.41038254]
[1756987635094,2.57952,110910.0,110900.0,2.54501444]
[1756987635294,2.57952,110910.0,110900.0,2.6351817]
[1756987635484,2.57952,110910.0,110900.0,1.76634162]
[1756987635685,2.57952,110910.0,110900.0,2.6351817]
[1756987636094,2.58152,110910.0,110900.0,2.13497278]
[1756987636288,2.58152,110910.0,110900.0,2.13947278]
[1756987636989,2.58152,110910.0,110900.0,2.42908614]
[1756987643198,2.58152,110910.0,110900.0,2.13947278]
[1756987643699,2.62121,110910.0,110900.0,1.23024606]
[1756987643900,2.62121,110910.0,110900.0,2.13947278]
[1756987644093,2.62121,110910.0,110900.0,1.56024606]
[1756987644288,0.87913,110910.0,110900.0,2.13947278]
[1756987652497,0.87913,110910.0,110900.0,2.42908614]
[1756987652696,0.87923,110910.0,110900.0,2.42908614]
[1756987656406,0.04179,110910.0,110900.0,2.42908614]
[1756987656601,0.0021,110910.0,110900.0,2.42908614]
[1756987656807,0.83918,110910.0,110900.0,2.42908614]
[1756987657406,0.0021,110910.0,110900.0,2.42908614]
[1756987657608,0.83918,110910.0,110900.0,2.42908614]
[1756987661611,0.0021,110910.0,110900.0,2.42908614]
[1756987661813,0.83914,110910.0,110900.0,2.42908614]
[1756987666328,0.0021,110910.0,110900.0,2.42908614]
[1756987666527,0.83902,110910.0,110900.0,2.42908614]
[1756987667827,0.83898,110910.0,110900.0,2.42908614]
[1756987668931,0.83898,110910.0,110900.0,2.63978874]
[1756987669929,0.0021,110910.0,110900.0,2.63978874]
[1756987670240,0.11033,110930.0,110910.0,0.0901365]
[1756987670523,0.04146,110930.0,110920.0,1.31977088]
[1756987670737,0.8783,110930.0,110920.0,1.86977088]
[1756987670931,0.8783,110930.0,110920.0,2.00431886]
[1756987671536,0.8783,110930.0,110920.0,2.09446986]
[1756987671735,0.8783,110930.0,110920.0,2.10785061]
[1756987671918,0.8783,110930.0,110920.0,1.81823725]
[1756987672323,0.8783,110930.0,110920.0,2.22246305]
[1756987672822,0.8783,110930.0,110920.0,2.29279191]
[1756987673027,0.8813,110930.0,110920.0,2.29279191]
[1756987674625,0.8813,110930.0,110920.0,2.00317855]
[1756987674826,0.8813,110930.0,110920.0,1.42395183]
[1756987675025,0.8813,110930.0,110920.0,2.00317855]
[1756987682038,0.8813,110930.0,110920.0,1.42395183]
[1756987682340,0.8813,110930.0,110920.0,2.00317855]
[1756987683437,0.8813,110930.0,110920.0,1.71345851]
[1756987683834,0.88098,110930.0,110920.0,1.71345851]
[1756987685730,0.88098,110930.0,110920.0,1.63465443]
[1756987685934,0.88098,110930.0,110920.0,1.92416111]
[1756987688742,0.88098,110930.0,110920.0,1.63465443]
[1756987688944,0.88108,110930.0,110920.0,1.92416111]
[1756987691744,0.88108,110930.0,110920.0,1.63465443]
[1756987692043,0.88108,110930.0,110920.0,1.92416111]
[1756987697649,0.04456,110930.0,110920.0,1.92416111]
[1756987697853,0.88068,110930.0,110920.0,1.92416111]
[1756987698046,0.04456,110930.0,110920.0,1.92416111]
[1756987698243,0.88068,110930.0,110920.0,1.92416111]
[1756987698945,0.88068,110930.0,110920.0,2.28496111]
[1756987699544,0.04456,110930.0,110920.0,2.28496111]
[1756987699751,0.83918,110930.0,110920.0,2.61496111]
[1756987700444,0.0031,110930.0,110920.0,2.61496111]
[1756987700653,0.83918,110930.0,110920.0,2.61496111]
[1756987701651,0.83918,110930.0,110920.0,2.71496111]
[1756987702445,0.83918,110930.0,110920.0,2.50425851]
[1756987704256,0.83918,110930.0,110920.0,2.71481535]
[1756987704450,0.0031,110930.0,110920.0,3.25432203]
[1756987704750,0.53076,110940.0,110930.0,0.0901226]
[1756987704957,0.53076,110940.0,110930.0,1.85993596]
[1756987705155,0.53076,110940.0,110930.0,1.99427558]
[1756987705355,0.53076,110940.0,110930.0,2.08442658]
[1756987705748,0.53076,110940.0,110930.0,2.33442658]
[1756987705948,0.53076,110940.0,110930.0,2.33892658]
[1756987706444,1.85063,110960.0,110950.0,0.0901063]
[1756987706650,2.68655,110960.0,110950.0,1.29041298]
[1756987706852,2.68655,110960.0,110950.0,1.42652863]
[1756987707050,2.68655,110960.0,110950.0,1.5166715]
[1756987707655,2.68855,110960.0,110950.0,1.5166715]
[1756987708048,2.69055,110960.0,110950.0,1.22716482]
[1756987708659,2.69055,110960.0,110950.0,1.8774715]
[1756987708848,2.62526473,110960.0,110950.0,1.8774715]
[1756987709048,2.66488473,110960.0,110950.0,1.58796482]
[1756987709260,2.66488473,110960.0,110950.0,1.8774715]
[1756987713662,2.59620473,110960.0,110950.0,1.8774715]
[1756987713960,2.55658473,110960.0,110950.0,1.8774715]
[1756987714763,2.55658473,110960.0,110950.0,2.0674715]
[1756987715962,2.55658473,110960.0,110950.0,2.60697818]
[1756987715963,1.72066473,110960.0,110950.0,2.60697818]
[1756987716264,0.8396,110960.0,110950.0,2.52802834]
[1756987717562,0.8396,110960.0,110950.0,2.23852166]
[1756987717762,0.8396,110960.0,110950.0,2.52802834]
[1756987718653,0.8396,110960.0,110950.0,2.3174715]
[1756987719759,0.87935,110960.0,110950.0,1.58796482]
[1756987720060,0.87935,110960.0,110950.0,1.8774715]
[1756987722164,0.87935,110960.0,110950.0,1.9974715]
[1756987723362,0.87935,110960.0,110950.0,2.1574715]
[1756987724173,0.8396,110960.0,110950.0,2.1574715]
[1756987726775,0.87935,110960.0,110950.0,2.1574715]
[1756987731371,0.87935,110960.0,110950.0,2.1819715]
[1756987732379,0.87935,110960.0,110950.0,1.9019715]
[1756987732585,0.87935,110960.0,110950.0,2.1519715]
[1756987733384,0.87735,110960.0,110950.0,2.1519715]
[1756987735185,1.12735,110960.0,110950.0,1.8819716]
[1756987735590,1.12535,110960.0,110950.0,1.59446492]
[1756987735891,1.12491,110960.0,110950.0,1.8839716]
[1756987736285,0.28975,110960.0,110950.0,1.59446492]
[1756987736484,0.28975,110960.0,110950.0,1.8839716]
[1756987736689,1.12487,110960.0,110950.0,1.8839716]
[1756987737588,0.28975,110960.0,110950.0,1.8839716]
[1756987737787,1.12487,110960.0,110950.0,1.8839716]
[1756987738886,1.50447498,110960.0,110950.0,1.14355852]
[1756987739087,2.28408498,110960.0,110950.0,0.78275852]
[1756987739287,2.28408498,110960.0,110950.0,0.69261565]
[1756987739288,1.68408498,110960.0,110950.0,0.69261565]
[1756987740279,1.68408498,110960.0,110950.0,0.69061565]
[1756987740482,1.68708498,110960.0,110950.0,0.69061565]
[1756987742093,1.93708498,110960.0,110950.0,0.69061565]
[1756987742296,1.93708498,110960.0,110950.0,0.64895565]
[1756987742596,3.67784498,110960.0,110950.0,0.60729565]
[1756987742784,3.95784498,110960.0,110950.0,0.60729565]
[1756987742981,4.01784498,110960.0,110950.0,0.38786]
[1756987743185,4.01784498,110960.0,110950.0,0.32537]
[1756987743389,4.01784498,110960.0,110920.0,0.17557886]
[1756987743390,0.1589325,110930.0,110920.0,0.17557886]
[1756987743592,1.28369963,110930.0,110920.0,0.56570946]
[1756987743786,1.29317963,110930.0,110920.0,0.68658336]
[1756987743989,1.54317963,110930.0,110920.0,0.59645276]
[1756987744691,1.54317963,110930.0,110920.0,0.68658336]
[1756987744888,1.54317963,110930.0,110920.0,0.59645276]
[1756987745481,1.54317963,110930.0,110920.0,0.59945276]
[1756987745894,1.54321963,110930.0,110920.0,0.60045276]
[1756987746294,1.90401963,110930.0,110920.0,0.60045276]
[1756987746793,1.90501963,110930.0,110920.0,0.59745276]
[1756987746981,1.90501963,110930.0,110920.0,1.37202762]
[1756987746982,0.06981,110930.0,110920.0,1.37202762]
[1756987747182,0.06981,110930.0,110920.0,1.98282762]
[1756987747393,0.90497,110930.0,110920.0,1.98282762]
[1756987750692,0.06981,110930.0,110920.0,1.98282762]
[1756987750888,0.90501,110930.0,110920.0,1.98282762]
[1756987752286,0.90501,110930.0,110920.0,1.40353336]
[1756987752490,0.90501,110930.0,110920.0,1.62202762]
[1756987753594,0.9951324,110930.0,110920.0,1.62202762]
[1756987755197,1.2643324,110930.0,110920.0,1.62202762]
[1756987755995,1.2643324,110930.0,110920.0,1.04273336]
[1756987756299,1.17421,110930.0,110920.0,1.62202762]
[1756987757296,1.17421,110930.0,110920.0,1.04273336]
[1756987757498,1.17421,110930.0,110920.0,1.62202762]
[1756987759802,1.17421,110930.0,110920.0,1.04273336]
[1756987760002,1.17421,110930.0,110920.0,1.62202762]
[1756987760303,1.2643326,110930.0,110920.0,1.62202762]
[1756987760501,1.2643326,110930.0,110920.0,1.98282762]
[1756987767306,2.16477973,110930.0,110920.0,0.59745276]
[1756987768208,2.16477973,110930.0,110920.0,0.88709989]
[1756987770702,2.43477973,110930.0,110920.0,0.59745276]
[1756987770907,2.18554016,110930.0,110920.0,0.50732614]
[1756987771298,0.54149303,110930.0,110920.0,0.99069407]
[1756987771503,1.01577303,110930.0,110920.0,1.3704922]
[1756987772105,1.01577303,110930.0,110920.0,1.08084507]
[1756987772409,1.01577303,110930.0,110920.0,1.3704922]
[1756987774103,1.01573303,110930.0,110920.0,1.9812922]
[1756987774606,1.01573303,110930.0,110920.0,1.40199794]
[1756987774809,1.01573303,110930.0,110920.0,1.9812922]
[1756987775511,1.01577303,110930.0,110920.0,1.9812922]
[1756987777914,1.01577303,110930.0,110920.0,1.40199794]
[1756987778108,1.01577303,110930.0,110920.0,1.9812922]
[1756987778413,1.01573303,110930.0,110920.0,1.9812922]
[1756987778613,1.01569303,110930.0,110920.0,1.9812922]
[1756987785013,1.01569303,110930.0,110920.0,1.40199794]
[1756987785217,1.01569303,110930.0,110920.0,1.9812922]
[1756987785515,0.09057043,110930.0,110920.0,1.9812922]
[1756987785714,0.90473,110930.0,110920.0,1.7312922]
[1756987789312,0.06981,110930.0,110920.0,1.7312922]
[1756987789513,0.90469,110930.0,110920.0,1.7312922]
[1756987792320,0.90469,110930.0,110920.0,1.7357922]
[1756987797321,0.90469,110930.0,110920.0,1.15649794]
[1756987797522,0.9948123,110930.0,110920.0,1.6456614]
[1756987798623,0.9948123,110930.0,110920.0,1.7357926]
[1756987804927,0.9948123,110930.0,110920.0,1.15649834]
[1756987805129,0.9948123,110930.0,110920.0,1.7357926]
[1756987805530,0.9948123,110930.0,110920.0,1.44607728]
[1756987806630,0.9948123,110930.0,110920.0,1.15649834]
[1756987806935,0.9948123,110930.0,110920.0,1.44607728]
[1756987808935,0.1599323,110930.0,110920.0,1.44607728]
[1756987809136,0.9943323,110930.0,110920.0,1.44607728]
[1756987810434,0.06981,110930.0,110920.0,1.44607728]
[1756987810634,0.90417,110930.0,110920.0,1.44607728]
[1756987811228,0.90413,110930.0,110920.0,1.44607728]
[1756987812529,0.06981,110930.0,110920.0,1.44607728]
[1756987812834,0.90413,110930.0,110920.0,1.44607728]
[1756987816831,0.90413,110930.0,110920.0,1.15649834]
[1756987817037,0.90413,110930.0,110920.0,1.44607728]
[1756987819141,0.994253,110930.0,110920.0,1.44607728]
[1756987820842,0.90389,110930.0,110920.0,1.44607728]
[1756987821943,0.90389,110930.0,110920.0,1.15649834]
[1756987822143,0.90389,110930.0,110920.0,1.44607728]
[1756987822538,0.06981,110930.0,110920.0,1.44607728]
[1756987822747,0.90389,110930.0,110920.0,1.44607728]
[1756987823043,0.90389,110930.0,110920.0,1.36705518]
[1756987823544,0.90389,110930.0,110920.0,1.65663412]
[1756987825443,0.90389,110930.0,110920.0,1.36705518]
[1756987825650,0.90389,110930.0,110920.0,1.65663412]
[1756987828246,0.06981,110930.0,110920.0,1.65663412]
[1756987828750,0.90369,110930.0,110920.0,1.65663412]
[1756987828951,0.001,110930.0,110920.0,1.65663412]
[1756987829153,0.83488,110930.0,110920.0,1.44607728]
[1756987829552,0.83484,110930.0,110920.0,1.44607728]
[1756987829754,0.001,110930.0,110920.0,1.80687728]
[1756987829955,0.83484,110930.0,110920.0,2.05687728]
[1756987830353,0.001,110930.0,110920.0,2.64645622]
[1756987830664,0.0001,110940.0,110930.0,0.194983]
[1756987830851,0.83384,110940.0,110930.0,1.345783]
[1756987831049,0.83384,110940.0,110930.0,2.06028783]
[1756987831355,1.74154,110950.0,110940.0,0.0901149]
[1756987831560,2.57524,110950.0,110940.0,0.6949749]
[1756987831762,2.57524,110950.0,110940.0,1.40981172]
[1756987831958,2.57524,110950.0,110940.0,1.49994647]
[1756987832160,2.57524,110950.0,110940.0,1.86990646]
[1756987832362,2.57524,110950.0,110940.0,1.87440646]
[1756987832565,1.74144,110950.0,110940.0,1.87440646]
[1756987832768,2.5752,110950.0,110940.0,1.87440646]
[1756987833063,2.5772,110950.0,110940.0,1.29524858]
[1756987833368,2.5772,110950.0,110940.0,1.87440646]
[1756987833961,2.5782,110950.0,110940.0,2.0849633]
[1756987834166,2.57812,110950.0,110940.0,2.3349633]
[1756987834770,2.57712,110950.0,110940.0,2.3369633]
[1756987835072,2.57712,110950.0,110940.0,2.12640646]
[1756987835567,2.57512,110950.0,110940.0,1.54824858]
[1756987835871,2.57512,110950.0,110940.0,2.12740646]
[1756987836074,2.57512,110950.0,110940.0,2.12940646]
[1756987836270,1.74144,110950.0,110940.0,2.12940646]
[1756987836572,0.8336,110950.0,110940.0,2.40940646]
[1756987836772,0.77399,110950.0,110940.0,2.40940646]
[1756987836967,0.75412,110950.0,110940.0,2.40940646]
[1756987837172,0.0001,110960.0,110950.0,0.1949668]
[1756987837374,0.0001,110970.0,110960.0,0.1949586]
[1756987837573,0.64852,110970.0,110960.0,1.38533754]
[1756987837763,0.64852,110970.0,110960.0,1.61058963]
[1756987839275,0.06574,110980.0,110970.0,0.1904706]
[1756987839477,0.89912,110980.0,110970.0,1.29962848]
[1756987839675,0.89912,110980.0,110970.0,1.79644601]
[1756987839870,0.89912,110980.0,110970.0,1.88655639]
[1756987840568,0.90012,110980.0,110970.0,1.88655639]
[1756987841576,0.90004,110980.0,110970.0,1.88655639]
[1756987842577,0.001,110980.0,110970.0,1.88655639]
[1756987842876,0.83436,110980.0,110970.0,1.88655639]
[1756987843580,0.83436,110980.0,110970.0,2.0043727]
[1756987845970,0.001,110980.0,110970.0,2.0043727]
[1756987846171,0.8342,110980.0,110970.0,2.0043727]
[1756987846474,0.001,110980.0,110970.0,2.0043727]
[1756987846675,0.8342,110980.0,110970.0,2.0043727]
[1756987847978,0.83416,110980.0,110970.0,2.0043727]
[1756987848774,1.10336,110980.0,110970.0,2.0043727]
[1756987849880,1.10236,110980.0,110970.0,2.0043727]
[1756987850180,1.10236,110980.0,110970.0,2.0053727]
[1756987851587,1.10236,110980.0,110970.0,2.0083727]
[1756987852583,1.10236,110980.0,110970.0,2.0128727]
[1756987861285,1.10236,110980.0,110970.0,1.43371482]
[1756987861490,1.10236,110980.0,110970.0,2.0128727]
[1756987866595,1.1402,110980.0,110970.0,2.0128727]
[1756987867099,1.10236,110980.0,110970.0,2.0128727]
[1756987867498,1.10236,110980.0,110970.0,2.01226044]
[1756987871697,1.1407,110980.0,110970.0,1.07291482]
[1756987871899,1.82928541,110980.0,110970.0,1.11684072]
[1756987872101,1.5400126,110980.0,110970.0,1.11684072]
[1756987872703,1.44993,110980.0,110970.0,1.20693142]
[1756987872898,1.41159,110980.0,110970.0,1.89215423]
[1756987873706,1.41159,110980.0,110970.0,1.89015423]
[1756987875802,1.41159,110980.0,110970.0,1.31160861]
[1756987876105,1.41159,110980.0,110970.0,1.89015423]
[1756987876404,1.41159,110980.0,110970.0,2.00623726]
[1756987876598,1.41159,110980.0,110970.0,1.71696445]
[1756987876799,1.41159,110980.0,110970.0,1.42769164]
[1756987877004,1.44993,110980.0,110970.0,1.71696445]
[1756987877601,1.5400126,110980.0,110970.0,1.71696445]
[1756987878312,1.5400126,110980.0,110970.0,1.68081445]
[1756987878809,1.5400126,110980.0,110970.0,1.47464072]
[1756987879908,1.57928541,110980.0,110970.0,0.82456791]
[1756987880098,1.82928541,110980.0,110970.0,1.05090072]
[1756987881311,1.82928541,110980.0,110970.0,1.14099142]
[1756987881808,2.22035131,110980.0,110970.0,0.5355]
[1756987882003,2.58115131,110980.0,110970.0,0.5355]
[1756987882908,2.23115131,110980.0,110970.0,0.5355]
[1756987883113,0.05923,110950.0,110940.0,0.5476598]
[1756987883411,1.18062281,110950.0,110940.0,1.59301492]
[1756987884522,1.27072981,110950.0,110940.0,1.59301492]
[1756987884814,1.27072981,110950.0,110940.0,1.23221492]
[1756987885615,1.27072981,110950.0,110940.0,1.24021492]
[1756987887306,0.981457,110950.0,110940.0,1.24021492]
[1756987887505,0.43860981,110950.0,110940.0,1.24021492]
[1756987887706,1.27072981,110950.0,110940.0,1.24021492]
[1756987887907,0.981457,110950.0,110940.0,1.52948773]
[1756987888616,1.250657,110950.0,110940.0,1.52948773]
[1756987889516,1.250577,110950.0,110940.0,1.52948773]
[1756987892117,1.250577,110950.0,110940.0,0.95094211]
[1756987892314,1.250577,110950.0,110940.0,1.52948773]
[1756987893019,0.418537,110950.0,110940.0,1.52948773]
[1756987893217,1.16043,110950.0,110940.0,1.52948773]
[1756987894217,0.32843,110950.0,110940.0,1.52948773]
[1756987894517,0.32853,110960.0,110950.0,0.1850869]
[1756987894713,1.10116,110960.0,110950.0,1.64443252]
[1756987894913,1.10116,110960.0,110950.0,1.78001193]
[1756987895122,1.10116,110960.0,110950.0,1.87013855]
[1756987895728,1.10116,110960.0,110950.0,1.87513855]
[1756987897222,0.2692,110960.0,110950.0,2.12513855]
[1756987897417,1.10108,110960.0,110950.0,2.12513855]
[1756987897913,0.2692,110960.0,110950.0,2.41441136]
[1756987898118,1.10108,110960.0,110950.0,2.41441136]
[1756987898325,1.10108,110960.0,110950.0,2.12513855]
[1756987899321,0.2692,110960.0,110950.0,2.12513855]
[1756987899627,0.2692,110960.0,110950.0,2.41441136]
[1756987899823,1.10104,110960.0,110950.0,2.41441136]
[1756987900221,1.10104,110960.0,110950.0,2.12513855]
[1756987900414,0.2692,110960.0,110950.0,2.41441136]
[1756987900617,0.0001,110970.0,110960.0,0.1870289]
[1756987900813,0.08003309,110980.0,110970.0,0.1870208]
[1756987901021,0.91173309,110980.0,110970.0,1.28556642]
[1756987901326,0.07993309,110980.0,110970.0,1.51161765]
[1756987901620,0.91169309,110980.0,110970.0,1.51161765]
[1756987901927,0.91169309,110980.0,110970.0,1.51261765]
[1756987903420,0.91169309,110980.0,110970.0,0.94324965]
[1756987903621,0.91169309,110980.0,110970.0,1.52179527]
[1756987906621,0.8907,110980.0,110970.0,1.52179527]
[1756987910626,0.9807827,110980.0,110970.0,1.22334484]
[1756987911327,0.9807827,110980.0,110970.0,1.13325404]
[1756987911527,0.9807827,110980.0,110970.0,1.22334494]
[1756987912229,1.2499827,110980.0,110970.0,1.22334494]
[1756987915131,0.32814,110980.0,110970.0,1.87341775]
[1756987915333,1.10064,110980.0,110970.0,1.87341775]
[1756987917924,0.83144,110980.0,110970.0,1.87341775]
[1756987918123,1.7413,110990.0,110980.0,0.1870127]
[1756987918331,2.57256,110990.0,110980.0,1.91563113]
[1756987918531,2.57256,110990.0,110980.0,2.05169082]
[1756987918832,2.57256,110990.0,110980.0,2.1418012]
[1756987919428,2.57356,110990.0,110980.0,2.1418012]
[1756987920031,2.57356,110990.0,110980.0,1.85252839]
[1756987920337,2.57356,110990.0,110980.0,1.27398277]
[1756987920530,2.57356,110990.0,110980.0,1.85256839]
[1756987921127,2.57356,110990.0,110980.0,1.27402277]
[1756987921330,2.57256,110990.0,110980.0,1.85256839]
[1756987922035,2.57256,110990.0,110980.0,1.85356839]
[1756987922536,2.57256,110990.0,110980.0,1.92724587]
[1756987924026,2.57256,110990.0,110980.0,1.34870025]
[1756987924331,2.57256,110990.0,110980.0,1.92724587]
[1756987924838,2.7215746,110990.0,110980.0,1.47636317]
[1756987925025,2.7215746,110990.0,110980.0,1.56644597]
[1756987927439,2.7215746,110990.0,110980.0,1.27715179]
[1756987929341,0.9803746,110990.0,110980.0,1.27715179]
[1756987929841,0.8903,110990.0,110980.0,1.27715179]
[1756987930042,1.1595,110990.0,110980.0,1.27715179]
[1756987931245,0.32814,110990.0,110980.0,1.27715179]
[1756987931446,1.15922,110990.0,110980.0,1.63795179]
[1756987932241,1.15918,110990.0,110980.0,1.63795179]
[1756987933855,0.32814,110990.0,110980.0,1.63795179]
[1756987934055,1.15918,110990.0,110980.0,1.63795179]
[1756987934953,1.15914,110990.0,110980.0,1.63795179]
[1756987935153,0.32814,110990.0,110980.0,1.63795179]
[1756987935453,1.1591,110990.0,110980.0,1.63795179]
[1756987936456,1.1591,110990.0,110980.0,1.64245179]
[1756987941165,0.32814,110990.0,110980.0,1.64245179]
[1756987941462,1.15898,110990.0,110980.0,1.64245179]
[1756987941665,1.15898,110990.0,110980.0,1.35320035]
[1756987941864,1.15898,110990.0,110980.0,1.64245179]
[1756987946365,0.32814,110990.0,110980.0,1.64245179]
[1756987946564,1.1589,110990.0,110980.0,1.64245179]
[1756987951372,0.32814,110990.0,110980.0,1.64245179]
[1756987951872,1.15878,110990.0,110980.0,1.64245179]
[1756987952570,1.15878,110990.0,110980.0,1.35320035]
[1756987952769,1.15878,110990.0,110980.0,1.64245179]
[1756987958664,1.15878,110990.0,110980.0,1.85300863]
[1756987958875,0.32814,110990.0,110980.0,1.85300863]
[1756987959076,1.15866,110990.0,110980.0,1.85300863]
[1756987962480,1.15866,110990.0,110980.0,1.56375719]
[1756987962778,1.15866,110990.0,110980.0,1.85300863]
[1756987963472,0.88946,110990.0,110980.0,1.76292583]
[1756987963678,0.88934,110990.0,110980.0,1.85300843]
[1756987968580,1.15854,110990.0,110980.0,1.85300843]
[1756987973684,1.2486146,110990.0,110980.0,1.85300843]
[1756987976585,1.15854,110990.0,110980.0,1.85300843]
[1756987978784,0.32814,110990.0,110980.0,1.85300843]
[1756987978987,1.15818,110990.0,110980.0,1.85300843]
[1756987980186,0.2692,110990.0,110980.0,1.85300843]
[1756987980389,0.2692,110990.0,110980.0,2.10300843]
[1756987980591,0.32935,111000.0,110990.0,0.1822145]
[1756987980796,1.15925,111000.0,110990.0,1.43226594]
[1756987980988,1.0992,111000.0,110990.0,1.56743904]
[1756987981188,1.0992,111000.0,110990.0,1.6575413]
[1756987981490,1.0992,111000.0,110990.0,1.77208145]
[1756987982294,1.0992,111000.0,110990.0,1.77658145]
[1756987982596,1.1002,111000.0,110990.0,1.77658145]
[1756987983295,1.1002,111000.0,110990.0,1.77758145]
[1756987983493,1.0992,111000.0,110990.0,1.77758145]
[1756987985096,1.0992,111000.0,110990.0,1.98813829]
[1756987986293,1.0992,111000.0,110990.0,1.77758145]
[1756987987497,1.0992,111000.0,110990.0,1.48833001]
[1756987987796,1.0992,111000.0,110990.0,2.06663635]
[1756987988001,0.0890626,111000.0,110990.0,2.06663635]
[1756987988288,0.0001,111010.0,111000.0,0.1822064]
[1756987988495,0.5029826,111010.0,111000.0,2.06046591]
[1756987988681,0.5029826,111010.0,111000.0,2.40545528]
[1756987988880,0.5029826,111010.0,111000.0,2.49554942]
[1756987989293,0.5029826,111010.0,111000.0,2.75554942]
[1756987989694,0.5039826,111010.0,111000.0,2.75554942]
[1756987989889,0.5039826,111010.0,111000.0,1.88808991]
[1756987990086,0.5039826,111010.0,111000.0,2.46639625]
[1756987990286,0.0001,111020.0,111010.0,0.1825683]
[1756987990487,0.82972,111020.0,111010.0,1.72167464]
[1756987990684,0.82972,111020.0,111010.0,1.85677648]
[1756987990993,0.82972,111020.0,111010.0,1.94686251]
[1756987991690,0.64960551,111020.0,111010.0,1.94686251]
[1756987991891,0.65160551,111020.0,111010.0,1.94686251]
[1756987992393,0.65260551,111020.0,111010.0,1.94686251]
[1756987992798,0.65260551,111020.0,111010.0,1.95581134]
[1756987993499,0.65260551,111020.0,111010.0,1.377505]
[1756987993696,0.65260551,111020.0,111010.0,1.95581134]
[1756987995397,0.65260551,111020.0,111010.0,1.016705]
[1756987995600,0.65260551,111020.0,111010.0,1.66665817]
[1756987995900,0.65260551,111020.0,111010.0,1.30585817]
[1756987996602,0.74265731,111020.0,111010.0,1.30585817]
[1756987996798,0.65260551,111020.0,111010.0,1.30585817]
[1756987997802,0.74265731,111020.0,111010.0,1.30585817]
[1756987998803,0.65260551,111020.0,111010.0,1.30585817]
[1756987999205,0.70937551,111020.0,111010.0,1.21585817]
[1756987999501,0.70937551,111020.0,111010.0,1.50501134]
[1756988001204,0.70937551,111020.0,111010.0,1.21585817]
[1756988001708,0.05977,111020.0,111010.0,1.21585817]
[1756988001904,0.05977,111020.0,111010.0,1.50501134]
[1756988002608,0.1498218,111020.0,111010.0,1.50501134]
[1756988002808,0.05977,111020.0,111010.0,1.50501134]
[1756988003508,0.05977,111020.0,111010.0,1.50951134]
[1756988005722,0.05877,111020.0,111010.0,1.50951134]
[1756988006019,0.05677,111020.0,111010.0,1.51051134]
[1756988006418,0.05677,111020.0,111010.0,1.00051134]
[1756988006622,0.05677,111020.0,111010.0,1.51051134]
[1756988009128,0.2131819,111030.0,111020.0,0.1825617]
[1756988009322,0.2130819,111030.0,111020.0,1.26086804]
[1756988009625,0.2130819,111030.0,111020.0,1.48542274]
[1756988009837,0.5738819,111030.0,111020.0,0.8170647]
[1756988010037,0.5738819,111030.0,111020.0,0.7245547]
[1756988010326,0.5738819,111030.0,111020.0,1.36142104]
[1756988010526,0.5738819,111030.0,111020.0,0.8170647]
[1756988010726,0.5738819,111030.0,111020.0,1.48542284]
[1756988011421,0.5748819,111030.0,111020.0,1.48542284]
[1756988012528,0.8248819,111030.0,111020.0,0.8170647]
[1756988012721,0.5748819,111030.0,111020.0,1.39537104]
[1756988012921,0.5748819,111030.0,111020.0,1.48542274]
[1756988013126,0.5748819,111030.0,111020.0,1.39537104]
[1756988015234,0.5748819,111030.0,111020.0,1.48542274]
[1756988019840,0.5748819,111030.0,111020.0,1.48992274]
[1756988022429,0.86403507,111030.0,111020.0,0.7884547]
[1756988022636,0.86403507,111030.0,111020.0,1.07760787]
[1756988022939,1.38403507,111030.0,111020.0,0.63897679]
[1756988023238,1.38403507,111030.0,111020.0,0.92812996]
[1756988023938,1.11403507,111030.0,111020.0,0.92812996]
[1756988024341,1.11403507,111030.0,111020.0,0.98752996]
[1756988024638,1.39403507,111030.0,111020.0,0.98752996]
[1756988024938,1.32777247,111030.0,111020.0,0.69837679]
[1756988025141,1.32777247,111030.0,111020.0,0.98752996]
[1756988025437,1.04777247,111030.0,111020.0,0.98752996]
[1756988025829,1.31777247,111030.0,111020.0,0.98752996]
[1756988026030,1.04777247,111030.0,111020.0,0.98752996]
[1756988026936,1.04777247,111030.0,111020.0,0.69837679]
[1756988027239,1.04777247,111030.0,111020.0,0.98752996]
[1756988027941,0.7586193,111030.0,111020.0,1.02382996]
[1756988028142,1.32777247,111030.0,111020.0,0.73467679]
[1756988028342,1.32777247,111030.0,111020.0,1.02382996]
[1756988028544,0.7586193,111030.0,111020.0,1.02382996]